bitfinex-derivatives/quotes_SOLF0:USTF0_20251207
["timestamp","ask_amount","ask_price","bid_price","bid_amount"]
[1765104252910,64.48,132.36,132.31,3.1]
[1765104253408,67.63,132.36,132.31,3.1]
[1765104253610,67.63,132.36,132.32,3.1]
[1765104253797,0.05352026,132.35,132.33,3.15635049]
[1765104254709,3.20352026,132.35,132.33,3.15635049]
[1765104258011,3.20352026,132.35,132.33,0.05635049]
[1765104259714,3.21,132.34,132.33,0.05635049]
[1765104261805,6.40696566,132.34,132.33,0.05635049]
[1765104268826,3.21,132.34,132.33,0.05635049]
[1765104273022,67.67,132.34,132.33,0.05635049]
[1765104282330,3.21,132.34,132.33,0.05635049]
[1765104282526,67.67,132.34,132.33,0.05635049]
[1765104284431,69.717293,132.34,132.33,0.05635049]
[1765104285332,5.257293,132.34,132.33,0.05635049]
[1765104285731,69.737293,132.34,132.33,0.05635049]
[1765104285922,5.257293,132.34,132.33,0.05635049]
[1765104286124,69.737293,132.34,132.33,0.05635049]
[1765104287730,3.21,132.3,132.28,9.43970234]
[1765104287931,67.69,132.3,132.29,3.29]
[1765104288332,64.48,132.3,132.29,3.29]
[1765104289833,6.85603281,132.31,132.29,3.29]
[1765104290033,64.48,132.3,132.29,3.29]
[1765104296943,67.69,132.3,132.29,3.29]
[1765104299943,3.28,132.29,132.28,9.4942487]
[1765104300543,64.48,132.3,132.28,3.24454636]
[1765104300738,64.48,132.3,132.29,3.19]
[1765104301339,67.76,132.3,132.28,12.6842487]
[1765104302549,64.48,132.3,132.29,3.19]
[1765104304042,67.76,132.3,132.29,3.19]
[1765104304546,3.28,132.29,132.28,9.4942487]
[1765104305943,3.28,132.29,132.28,7.08652222]
[1765104306250,3.28,132.29,132.28,0.05454636]
[1765104307948,67.76,132.29,132.28,0.05454636]
[1765104308647,67.76,132.29,132.28,7.08652222]
[1765104314748,67.76,132.29,132.28,0.05454636]
[1765104317756,67.76,132.29,132.26,7.03197586]
[1765104317944,67.76,132.29,132.21,3.06]
[1765104317945,3.15,132.25,132.21,3.06]
[1765104318149,3.15,132.23,132.21,3.06]
[1765104318956,3.19761983,132.23,132.21,3.10828483]
[1765104319958,3.19761983,132.23,132.21,0.04828483]
[1765104320156,3.15,132.22,132.21,0.04828483]
[1765104320354,5.24491283,132.23,132.21,3.10828483]
[1765104325054,3.15,132.22,132.21,0.04828483]
[1765104327064,67.65,132.22,132.21,0.04828483]
[1765104336272,3.15,132.21,132.17,3.06]
[1765104336568,5.197293,132.19,132.17,3.06]
[1765104336757,69.697293,132.19,132.17,3.06]
[1765104337364,3.15,132.18,132.17,3.11413198]
[1765104337958,3.15,132.18,132.17,0.05413198]
[1765104347383,0.05473366,132.19,132.17,3.26413198]
[1765104349287,0.05473366,132.19,132.17,10.07273198]
[1765104349487,0.05473366,132.19,132.18,3.21]
[1765104349994,3.13,132.23,132.19,3.21]
[1765104350290,67.65,132.23,132.19,3.21]
[1765104351191,0.04920317,132.22,132.2,3.26038768]
[1765104352386,3.17920317,132.22,132.2,0.05038768]
[1765104357798,3.17920317,132.22,132.2,3.26038768]
[1765104363900,0.04920317,132.22,132.2,10.06738768]
[1765104364095,3.09,132.29,132.22,3.16]
[1765104364301,3.09,132.28,132.24,3.16]
[1765104365006,0.0491068,132.27,132.26,3.16]
[1765104365716,3.09,132.31,132.27,3.16]
[1765104366599,0.05390706,132.3,132.28,0.05122995]
[1765104366806,3.14390706,132.3,132.28,3.21122995]
[1765104367699,3.14390706,132.3,132.28,0.05122995]
[1765104368301,3.09,132.29,132.28,0.05122995]
[1765104371707,67.61,132.29,132.28,0.05122995]
[1765104374603,3.09,132.29,132.28,0.05122995]
[1765104375501,67.66390706,132.3,132.28,3.21122995]
[1765104376803,0.05390706,132.3,132.28,3.21122995]
[1765104383511,3.14390706,132.3,132.28,3.21122995]
[1765104385413,0.05390706,132.3,132.28,3.21122995]
[1765104385819,3.14390706,132.3,132.28,3.21122995]
[1765104389011,3.14390706,132.3,132.28,0.05122995]
[1765104389813,3.14390706,132.3,132.28,3.17122995]
[1765104390516,3.14390706,132.3,132.28,0.05122995]
[1765104392407,3.14390706,132.3,132.28,3.17122995]
[1765104394516,3.14390706,132.3,132.28,0.05122995]
[1765104396628,3.14390706,132.3,132.28,3.17122995]
[1765104401524,0.05390706,132.3,132.28,10.15578789]
[1765104401819,0.05390706,132.3,132.29,3.12]
[1765104403926,0.05390706,132.3,132.29,10.10455794]
[1765104404318,105.7792,132.35,132.28,0.05122995]
[1765104404319,10.00501569,132.35,132.3,3.12]
[1765104404518,64.48,132.34,132.31,3.12]
[1765104405418,64.53407954,132.34,132.31,3.16830384]
[1765104405717,64.53407954,132.34,132.31,10.18174308]
[1765104406527,2.75,132.33,132.31,10.18174308]
[1765104409126,2.75,132.33,132.32,7.01343924]
[1765104410429,4.85087435,132.34,132.32,10.32343924]
[1765104410931,0.05407954,132.34,132.33,3.31]
[1765104411119,0.05407954,132.34,132.33,10.32343924]
[1765104412027,4.85087435,132.34,132.33,7.01343924]
[1765104412224,2.75,132.33,132.32,7.01343924]
[1765104414447,2.80407954,132.34,132.32,10.34343924]
[1765104418140,2.80407954,132.34,132.33,3.33]
[1765104420340,0.05407954,132.34,132.33,3.33]
[1765104427647,2.80407954,132.34,132.32,7.01343924]
[1765104428046,2.80407954,132.34,132.32,10.34343924]
[1765104430146,2.80407954,132.34,132.32,3.33]
[1765104432050,2.75,132.33,132.31,7.06174308]
[1765104432746,2.75,132.33,132.31,10.39174308]
[1765104433346,67.21,132.32,132.31,0.04830384]
[1765104435246,69.25679481,132.32,132.31,0.04830384]
[1765104441667,64.46,132.32,132.31,3.11830384]
[1765104442159,4.85087435,132.34,132.32,3.07]
[1765104442457,64.48,132.33,132.32,3.07]
[1765104444450,64.48,132.33,132.32,10.08343924]
[1765104445259,67.23,132.33,132.31,10.13174308]
[1765104445650,0.05407954,132.34,132.33,3.07]
[1765104445853,0.05407954,132.34,132.33,10.08343924]
[1765104446361,0.05407954,132.34,132.33,10.09869232]
[1765104446663,0.05407954,132.34,132.33,3.07]
[1765104447257,9.5483,132.38,132.33,3.07]
[1765104447462,119.2852,132.45,132.35,3.07]
[1765104447463,2.75,132.39,132.35,3.07]
[1765104447764,64.48,132.39,132.38,3.07]
[1765104448853,64.48,132.39,132.37,3.12221481]
[1765104449350,67.23,132.39,132.37,3.12221481]
[1765104451466,64.48,132.39,132.37,3.12221481]
[1765104451662,64.48,132.4,132.37,3.12221481]
[1765104461270,64.48,132.4,132.38,3.07]
[1765104463277,2.75,132.42,132.38,3.07]
[1765104468177,2.75,132.42,132.37,6.85051481]
[1765104468178,2.75,132.4,132.37,0.05221481]
[1765104468374,2.75,132.4,132.37,3.20221481]
[1765104469171,2.75,132.4,132.37,0.05221481]
[1765104470571,2.75,132.4,132.37,3.20221481]
[1765104472683,2.75,132.4,132.37,0.05221481]
[1765104473284,9.5472,132.4,132.37,0.05221481]
[1765104473588,2.75,132.39,132.37,3.20221481]
[1765104481894,2.75,132.39,132.37,0.05221481]
[1765104484382,2.69,132.38,132.34,6.98772677]
[1765104484588,2.69,132.38,132.33,6.98772677]
[1765104485488,9.4883,132.38,132.34,0.05809118]
[1765104485688,2.69,132.35,132.3,3.23]
[1765104485894,2.69,132.35,132.31,3.23]
[1765104486795,0.05681254,132.34,132.33,3.23]
[1765104487101,2.74681254,132.34,132.32,3.28800735]
[1765104488695,0.05681254,132.34,132.32,3.28800735]
[1765104489794,2.74681254,132.34,132.32,3.28800735]
[1765104492102,0.05681254,132.34,132.32,3.28800735]
[1765104493308,2.69,132.38,132.33,3.23]
[1765104493489,2.69,132.38,132.34,3.23]
[1765104494496,0.04764681,132.37,132.36,3.23]
[1765104498809,67.23,132.4,132.36,3.23]
[1765104500299,2.75,132.39,132.36,3.23]
[1765104501909,2.75,132.4,132.36,3.23]
[1765104509313,64.48,132.42,132.37,3.33]
[1765104509516,2.75,132.41,132.39,3.33]
[1765104509710,2.75,132.42,132.39,3.33]
[1765104511110,2.75,132.42,132.38,0.0508023]
[1765104511316,2.75,132.42,132.38,3.3808023]
[1765104512416,2.75,132.41,132.38,3.3808023]
[1765104530930,11.59047675,132.42,132.38,3.3808023]
[1765104531424,2.75,132.42,132.38,3.3808023]
[1765104531629,4.79427675,132.43,132.39,3.26]
[1765104532231,2.75,132.42,132.39,3.26]
[1765104532531,2.75,132.42,132.4,3.26]
[1765104538837,2.75,132.42,132.38,12.59191969]
[1765104539033,2.75,132.42,132.38,3.2208023]
[1765104539242,2.75,132.42,132.39,3.17]
[1765104540140,2.75,132.4,132.38,3.2208023]
[1765104541748,67.17,132.4,132.38,0.0508023]
[1765104541947,67.17,132.4,132.38,3.2208023]
[1765104542851,64.42,132.41,132.38,3.2208023]
[1765104543056,64.42,132.41,132.39,3.17]
[1765104544040,67.17,132.41,132.39,3.17]
[1765104545752,67.17,132.41,132.4,7.01870924]
[1765104546151,2.75,132.41,132.4,7.01870924]
[1765104546654,2.75,132.41,132.39,12.54111739]
[1765104546846,2.75,132.41,132.4,7.01869726]
[1765104548244,2.75,132.41,132.39,10.18869726]
[1765104548447,2.75,132.41,132.4,7.01869726]
[1765104549957,76.01047675,132.42,132.4,10.18869726]
[1765104550159,4.79427675,132.42,132.4,10.18869726]
[1765104550449,2.04427675,132.42,132.41,3.17]
[1765104550645,66.46427675,132.42,132.41,3.17]
[1765104551556,69.21427675,132.42,132.4,10.18869726]
[1765104551953,64.42,132.42,132.41,3.17]
[1765104552356,64.42,132.42,132.41,10.18869726]
[1765104553061,4.79427675,132.44,132.42,3.17]
[1765104553261,69.21427675,132.44,132.42,10.24547933]
[1765104557156,2.75,132.44,132.43,7.01869726]
[1765104557557,2.75,132.44,132.43,3.26]
[1765104559167,2.75,132.44,132.43,10.26974581]
[1765104559360,66.46427675,132.46,132.43,10.26974581]
[1765104559664,2.75,132.45,132.43,10.26974581]
[1765104561752,2.75,132.45,132.44,7.00974581]
[1765104563468,69.21427675,132.46,132.44,10.26974581]
[1765104567266,6.7936,132.47,132.42,9.42789946]
[1765104567267,67.17,132.48,132.46,3.26]
[1765104567664,2.75,132.48,132.46,3.31461495]
[1765104567970,2.75,132.49,132.46,3.31461495]
[1765104569568,61.48791605,132.5,132.46,5.3588917]
[1765104569764,2.75,132.53,132.5,3.26]
[1765104570164,2.75,132.54,132.51,3.26]
[1765104571773,2.75,132.54,132.5,0.0544263]
[1765104571774,2.75,132.52,132.5,0.0544263]
[1765104572270,2.75,132.52,132.5,3.3144263]
[1765104574976,2.75,132.52,132.5,0.0544263]
[1765104575675,69.21427675,132.51,132.5,0.0544263]
[1765104578878,67.17,132.51,132.5,0.0544263]
[1765104579181,4.79427675,132.51,132.5,0.0544263]
[1765104579381,2.75,132.48,132.46,3.26]
[1765104580280,2.80346117,132.48,132.46,3.31529413]
[1765104584679,2.80346117,132.48,132.46,0.05529413]
[1765104586481,4.79427675,132.47,132.46,0.05529413]
[1765104587187,69.21427675,132.47,132.46,0.05529413]
[1765104590489,67.17,132.47,132.46,0.05529413]
[1765104596005,2.75,132.47,132.46,0.05529413]
[1765104596205,67.17,132.47,132.46,0.05529413]
[1765104601405,2.75,132.46,132.43,7.00974581]
[1765104601604,2.75,132.46,132.43,10.31974581]
[1765104602407,2.75,132.47,132.44,3.31]
[1765104602615,0.05346117,132.48,132.47,3.31]
[1765104603007,0.05346117,132.48,132.47,10.31974581]
[1765104604714,0.05346117,132.48,132.47,3.31]
[1765104606109,0.05346117,132.48,132.47,12.68111739]
[1765104606917,2.75,132.52,132.48,3.31]
[1765104607214,67.17,132.52,132.49,3.31]
[1765104607416,2.75,132.51,132.49,3.31]
[1765104608016,2.80147208,132.51,132.49,3.3636591]
[1765104609422,0.05147208,132.51,132.49,10.34774996]
[1765104609717,0.05147208,132.51,132.5,3.31]
[1765104611515,2.80147208,132.51,132.49,10.34774996]
[1765104613723,2.80147208,132.51,132.49,7.03774996]
[1765104613918,2.80147208,132.51,132.49,0.0536591]
[1765104615623,2.75,132.5,132.49,0.0536591]
[1765104620328,2.75,132.5,132.49,0.0036591]
[1765104620514,2.69,132.48,132.46,6.98409086]
[1765104620729,2.69,132.47,132.46,6.98409086]
[1765104621525,2.69,132.47,132.45,7.0399819]
[1765104621727,2.69,132.47,132.45,10.1399819]
[1765104624626,2.69,132.47,132.45,7.0399819]
[1765104627635,2.69,132.47,132.45,0.05589104]
[1765104632032,64.4,132.47,132.45,3.15589104]
[1765104632238,64.4,132.47,132.45,10.1399819]
[1765104633137,67.09,132.47,132.45,10.1399819]
[1765104633937,2.69,132.46,132.45,7.0399819]
[1765104634438,67.09,132.47,132.45,10.1399819]
[1765104636046,2.69,132.47,132.45,10.1399819]
[1765104636241,67.09,132.47,132.45,10.1399819]
[1765104638150,2.69,132.46,132.45,10.1399819]
[1765104641248,2.69,132.46,132.45,7.0399819]
[1765104642953,2.69,132.46,132.45,10.1399819]
[1765104643147,64.4,132.47,132.45,10.1399819]
[1765104643452,67.09,132.47,132.45,10.1399819]
[1765104650859,0.05437755,132.48,132.46,3.12]
[1765104651054,2.74437755,132.48,132.46,10.10409086]
[1765104651352,2.74437755,132.48,132.47,6.98409086]
[1765104654656,2.74437755,132.48,132.47,10.10409086]
[1765104656646,2.74437755,132.48,132.47,3.12]
[1765104656851,2.74437755,132.48,132.47,10.10409086]
[1765104660757,0.05437755,132.48,132.47,10.10409086]
[1765104661364,0.05437755,132.48,132.47,12.49111739]
[1765104680775,0.05437755,132.48,132.47,3.12]
[1765104680977,0.05437755,132.48,132.47,12.49111739]
[1765104681168,0.05437755,132.48,132.47,3.12]
[1765104681677,0.05437755,132.48,132.47,12.49111739]
[1765104682083,0.05437755,132.48,132.47,3.12]
[1765104682979,2.75437755,132.48,132.47,3.12]
[1765104683177,2.75437755,132.48,132.47,10.10013505]
[1765104683376,2.75437755,132.48,132.47,6.98013505]
[1765104683780,2.7,132.47,132.46,6.98013505]
[1765104686581,2.7,132.47,132.46,10.17013505]
[1765104689281,2.7,132.47,132.46,6.98013505]
[1765104689884,2.7,132.47,132.46,10.17013505]
[1765104694184,2.7,132.47,132.46,6.98013505]
[1765104698481,2.7,132.46,132.45,7.03602609]
[1765104699279,2.7,132.46,132.45,0.05589104]
[1765104701293,2.7,132.44,132.43,6.98013505]
[1765104701488,2.7,132.43,132.42,6.98013505]
[1765104705394,2.7,132.43,132.41,10.22356076]
[1765104708291,2.7,132.43,132.41,3.24342571]
[1765104712704,2.7,132.42,132.41,3.24342571]
[1765104713002,2.7,132.42,132.41,0.05342571]
[1765104713203,9.4965,132.41,132.39,3.29]
[1765104713996,64.4,132.4,132.39,3.29]
[1765104715204,67.1,132.4,132.39,3.29]
[1765104716198,2.7,132.39,132.38,0.05281402]
[1765104716405,2.7,132.39,132.36,3.29]
[1765104717302,2.7,132.39,132.36,3.34329999]
[1765104717503,2.7,132.37,132.36,0.05329999]
[1765104717693,67.1,132.37,132.36,0.05329999]
[1765104719303,64.42,132.37,132.36,3.34329999]
[1765104720308,0.04847186,132.38,132.36,3.34329999]
[1765104720502,64.46847186,132.38,132.36,3.34329999]
[1765104722707,67.15847186,132.38,132.36,3.34329999]
[1765104723109,64.46847186,132.38,132.36,3.34329999]
[1765104723609,71.26667186,132.38,132.36,3.34329999]
[1765104723998,64.46847186,132.38,132.36,3.34329999]
[1765104724509,67.15847186,132.38,132.36,3.34329999]
[1765104725917,2.69,132.37,132.36,0.05329999]
[1765104727612,2.69,132.37,132.34,3.15]
[1765104728605,2.69,132.37,132.34,3.20395866]
[1765104729911,0.04847186,132.38,132.34,3.20395866]
[1765104730119,64.42,132.37,132.34,3.20395866]
[1765104730314,0.04847186,132.38,132.34,3.20395866]
[1765104730516,0.04847186,132.38,132.36,3.15]
[1765104734716,0.04847186,132.38,132.36,9.9488]
[1765104735015,0.04847186,132.38,132.37,3.15]
[1765104735528,2.69,132.43,132.38,3.15]
[1765104736622,2.74398014,132.42,132.4,3.15]
[1765104743822,2.74398014,132.42,132.39,3.28652364]
[1765104746425,2.74398014,132.42,132.39,0.05652364]
[1765104747622,9.54018014,132.42,132.39,0.05652364]
[1765104747923,2.74398014,132.42,132.39,0.05652364]
[1765104748316,2.7,132.4,132.39,0.05652364]
[1765104751337,67.12,132.41,132.39,3.28652364]
[1765104751537,2.7,132.41,132.39,3.28652364]
[1765104751838,64.42,132.41,132.39,3.28652364]
[1765104752140,67.12,132.41,132.39,3.28652364]
[1765104752942,2.7,132.4,132.39,3.28652364]
[1765104753129,2.7,132.4,132.39,0.05652364]
[1765104753324,2.7,132.4,132.39,3.28652364]
[1765104753531,67.12,132.41,132.39,3.28652364]
[1765104756040,2.7,132.4,132.39,3.28652364]
[1765104756230,67.12,132.41,132.39,3.28652364]
[1765104759839,2.7,132.41,132.39,3.28652364]
[1765104763641,0.05398014,132.42,132.39,3.28652364]
[1765104763841,67.17398014,132.42,132.39,3.28652364]
[1765104764846,2.7,132.41,132.39,3.28652364]
[1765104765144,2.7,132.41,132.39,0.05652364]
[1765104771943,2.7,132.41,132.39,3.38652364]
[1765104774146,67.12,132.41,132.39,3.38652364]
[1765104774345,67.12,132.41,132.39,12.75764103]
[1765104779057,67.12,132.41,132.4,3.27]
[1765104779446,67.12,132.41,132.39,12.69764103]
[1765104780349,2.7,132.41,132.39,12.69764103]
[1765104781755,2.69,132.4,132.39,9.42764103]
[1765104782052,2.69,132.4,132.39,0.05652364]
[1765104783057,4.78810869,132.42,132.4,3.27]
[1765104783556,2.74398014,132.42,132.41,3.27]
[1765104783949,2.74398014,132.42,132.4,12.64111739]
[1765104784858,0.05398014,132.42,132.41,3.27]
[1765104785055,0.05398014,132.42,132.41,12.64111739]
[1765104787948,2.74398014,132.42,132.41,9.37111739]
[1765104788153,2.69,132.41,132.4,9.37111739]
[1765104788657,2.69,132.41,132.39,12.69764103]
[1765104798263,2.69,132.41,132.39,9.42764103]
[1765104799175,2.69,132.41,132.39,0.05652364]
[1765104800076,2.69,132.41,132.39,3.24652364]
[1765104801276,2.75398014,132.42,132.39,3.24652364]
[1765104801474,0.05398014,132.42,132.39,9.42764103]
[1765104801674,0.05398014,132.42,132.4,3.19]
[1765104803874,0.05398014,132.42,132.41,3.19]
[1765104810579,2.75398014,132.42,132.4,9.37111739]
[1765104810779,2.75398014,132.42,132.39,9.42764103]
[1765104811072,4.79810869,132.42,132.39,0.05652364]
[1765104811276,2.7,132.41,132.39,0.05652364]
[1765104811477,2.7,132.41,132.39,3.24652364]
[1765104815880,2.7,132.41,132.39,0.05652364]
[1765104819186,9.4967,132.41,132.39,0.05652364]
[1765104819884,2.7,132.4,132.39,0.05652364]
[1765104820783,4.74412855,132.4,132.39,0.05652364]
[1765104827686,2.7,132.38,132.35,12.48111739]
[1765104827881,2.7,132.37,132.35,12.48111739]
[1765104828482,2.74858196,132.37,132.35,12.52894871]
[1765104828789,2.74858196,132.37,132.35,3.15783132]
[1765104829180,2.74858196,132.37,132.35,0.04783132]
[1765104837792,9.54728196,132.37,132.35,0.04783132]
[1765104838090,2.7,132.36,132.35,0.04783132]
[1765104842290,6.84728196,132.37,132.35,3.23783132]
[1765104842291,9.54728196,132.37,132.35,3.23783132]
[1765104842691,2.7,132.36,132.35,3.23783132]
[1765104842899,2.7,132.36,132.35,0.04783132]
[1765104844800,67.12,132.36,132.35,0.04783132]
[1765104851805,2.7,132.35,132.33,3.19]
[1765104852913,2.7,132.35,132.33,3.24074922]
[1765104855017,64.42,132.36,132.33,3.24074922]
[1765104855414,67.12,132.36,132.33,3.24074922]
[1765104855619,2.7,132.36,132.33,3.24074922]
[1765104855818,67.18858196,132.37,132.34,3.19]
[1765104858519,2.73858196,132.37,132.35,3.11]
[1765104859722,2.73858196,132.37,132.34,6.7998]
[1765104860013,2.73858196,132.37,132.34,19.28091739]
[1765104863231,2.73858196,132.37,132.34,12.48111739]
[1765104865327,2.73858196,132.37,132.34,9.37111739]
[1765104865525,2.69,132.36,132.33,0.05074922]
[1765104867624,2.69,132.34,132.33,0.05074922]
[1765104873518,2.69,132.34,132.33,9.42186661]
[1765104873815,2.69,132.34,132.33,0.05074922]
[1765104875931,67.13,132.34,132.33,0.05074922]
[1765104900550,2.7,132.31,132.29,12.45111739]
[1765104900760,67.14,132.31,132.29,3.08]
[1765104901055,2.7,132.3,132.29,3.08]
[1765104901242,67.14,132.31,132.29,3.08]
[1765104901645,67.19442672,132.31,132.29,3.12879755]
[1765104904558,2.7,132.3,132.29,3.12879755]
[1765104905157,2.7,132.3,132.29,0.04879755]
[1765104906053,2.7,132.29,132.25,17.47594237]
[1765104906257,2.7,132.29,132.25,3.35]
[1765104906653,2.7,132.27,132.25,3.35]
[1765104906841,2.74795184,132.27,132.25,3.40256704]
[1765104909757,2.74795184,132.27,132.25,0.05256704]
[1765104910453,67.18795184,132.27,132.25,0.05256704]
[1765104910759,2.7,132.26,132.25,0.05256704]
[1765104911462,2.74795184,132.27,132.25,3.40256704]
[1765104911850,2.74795184,132.27,132.25,0.05256704]
[1765104914059,9.55175184,132.27,132.23,3.35]
[1765104914265,2.7,132.26,132.23,3.35]
[1765104915151,2.7,132.26,132.23,3.40481265]
[1765104919263,67.21795184,132.27,132.23,3.40481265]
[1765104920560,67.21795184,132.27,132.24,3.12]
[1765104921663,2.75795184,132.27,132.24,3.12]
[1765104922167,2.75795184,132.27,132.25,3.12]
[1765104925572,0.04795184,132.27,132.26,3.12]
[1765104926659,2.71,132.31,132.28,3.12]
[1765104927373,2.71,132.32,132.28,3.12]
[1765104927577,0.05665397,132.31,132.29,3.1695652]
[1765104927874,2.76665397,132.31,132.29,3.1695652]
[1765104928074,0.05665397,132.31,132.29,3.1695652]
[1765104930374,0.05665397,132.31,132.3,3.12]
[1765104936990,2.76665397,132.31,132.29,9.9719652]
[1765104937188,2.76665397,132.31,132.3,3.12]
[1765104937379,0.05665397,132.31,132.3,3.12]
[1765104945789,2.76665397,132.31,132.3,3.12]
[1765104946192,2.76665397,132.31,132.29,3.1695652]
[1765104949600,2.76665397,132.31,132.29,0.0495652]
[1765104955907,2.76665397,132.31,132.29,3.2695652]
[1765104961102,0.05665397,132.31,132.29,3.2695652]
[1765104963703,2.7,132.35,132.29,3.2695652]
[1765104963903,2.7,132.35,132.3,3.09]
[1765104964509,2.7,132.35,132.31,3.09]
[1765104964808,0.05206821,132.34,132.33,3.09]
[1765104972317,2.75206821,132.34,132.3,12.43605969]
[1765104972518,2.75206821,132.34,132.3,3.09]
[1765104973418,2.7,132.33,132.3,3.09]
[1765104973623,2.7,132.33,132.31,0.05297416]
[1765104978127,3.19910821,132.33,132.28,9.34605969]
[1765104978323,2.7,132.32,132.28,9.34605969]
[1765104978528,2.7,132.32,132.27,12.63605969]
[1765104978933,2.7,132.32,132.28,3.29]
[1765104979123,2.7,132.32,132.29,0.05464964]
[1765104979328,2.7,132.3,132.29,0.05464964]
[1765104986141,67.14,132.3,132.29,0.05464964]
[1765104986542,2.7,132.28,132.24,3.29]
[1765104987544,2.75299877,132.27,132.25,0.05745038]
[1765104987839,0.05299877,132.27,132.25,3.34745038]
[1765104999455,0.05299877,132.27,132.25,10.15205038]
[1765104999957,0.05299877,132.27,132.26,3.29]
[1765105011248,2.7,132.31,132.27,3.18]
[1765105012262,0.05040759,132.3,132.29,3.18]
[1765105027072,2.74040759,132.3,132.28,9.40172597]
[1765105027273,2.74040759,132.3,132.28,3.22566628]
[1765105036585,9.54280759,132.3,132.28,3.22566628]
[1765105036787,2.69,132.29,132.28,0.05566628]
[1765105038698,71.29280759,132.3,132.28,3.36566628]
[1765105039497,73.99280759,132.3,132.28,3.36566628]
[1765105039997,0.05040759,132.3,132.28,3.36566628]
[1765105040298,0.05040759,132.3,132.29,3.31]
[1765105049902,2.75040759,132.3,132.28,12.71172597]
[1765105050404,67.19040759,132.3,132.28,12.71172597]
[1765105052310,2.7,132.29,132.28,12.71172597]
[1765105054203,2.7,132.29,132.28,9.40172597]
[1765105054609,2.7,132.29,132.28,12.71172597]
[1765105055207,67.19040759,132.3,132.28,12.71172597]
[1765105055403,2.7,132.29,132.28,12.71172597]
[1765105057204,67.14,132.29,132.28,12.71172597]
[1765105059109,67.14,132.29,132.28,9.40172597]
[1765105060811,67.14,132.29,132.28,0.05566628]
[1765105061405,2.7,132.28,132.25,12.65605969]
[1765105062010,2.7,132.28,132.26,3.31]
[1765105062412,2.7,132.28,132.26,3.36036624]
[1765105064614,2.7,132.28,132.26,0.05036624]
[1765105066317,2.7,132.28,132.24,3.31]
[1765105066613,2.7,132.27,132.24,3.31]
[1765105067411,2.75459295,132.27,132.24,3.35769276]
[1765105067616,2.75459295,132.27,132.24,3.30769276]
[1765105068408,2.7,132.26,132.24,3.30769276]
[1765105068615,67.14,132.25,132.24,3.30769276]
[1765105072518,64.44,132.25,132.24,3.30769276]
[1765105082128,2.75459295,132.27,132.24,3.30769276]
[1765105082323,0.05459295,132.27,132.24,3.30769276]
[1765105087017,0.05459295,132.27,132.24,9.39375245]
[1765105087229,0.05459295,132.27,132.25,3.21]
[1765105088335,0.05459295,132.27,132.25,12.55605969]
[1765105088533,0.05459295,132.27,132.26,3.21]
[1765105091340,0.05459295,132.27,132.26,12.55605969]
[1765105093342,0.05459295,132.27,132.26,3.21]
[1765105093538,0.05459295,132.27,132.26,12.5679388]
[1765105093839,0.05459295,132.27,132.26,3.21]
[1765105095641,67.14,132.31,132.26,3.21]
[1765105095830,67.14,132.31,132.28,3.21]
[1765105096332,2.75,132.3,132.28,3.21]
[1765105096646,2.80124203,132.3,132.28,3.26796776]
[1765105108140,0.05124203,132.3,132.28,3.26796776]
[1765105108649,2.80124203,132.3,132.28,3.26796776]
[1765105113062,2.75,132.29,132.28,3.26796776]
[1765105114653,9.60354203,132.3,132.28,3.26796776]
[1765105116960,2.75,132.29,132.28,0.05796776]
[1765105117556,9.60354203,132.3,132.28,3.39796776]
[1765105122372,2.75,132.29,132.28,3.39796776]
[1765105125074,2.75,132.29,132.28,0.05796776]
[1765105140583,2.75,132.29,132.26,9.36068139]
[1765105140784,2.75,132.27,132.26,9.36068139]
[1765105140972,2.75,132.27,132.25,12.70068139]
[1765105141379,2.75,132.27,132.25,9.36068139]